fUSD/lending_fUSD_20250826
["ID","MTS","AMOUNT","RATE_DAILY","PERIOD"]
[381498422,1756235445443,-1400.0,0.00025377,2]
[381498423,1756235445452,-1400.0,0.00025377,2]
[381498424,1756235445462,-16988.1036592,0.00025378,7]
[381498425,1756235445471,-160.0,0.00025378,7]
[381498426,1756235445480,-150.0,0.00025398,4]
[381498427,1756235445489,-844.63891918,0.000254,7]
[381498428,1756235445498,-458.7662338,0.000254,7]
[381498429,1756235445507,-160.0,0.000254,7]
[381498430,1756235445516,-212.18043798,0.000254,7]
[381498431,1756235445525,-1610.57062589,0.00025412,2]
[381498432,1756235445534,-1022.74148045,0.00025428,2]
[381498433,1756235445543,-30975.2904943,0.00025442,2]
[381498434,1756235445552,-500.0,0.00025452,2]
[381498435,1756235445562,-500.0,0.00025452,2]
[381498436,1756235445571,-600.0,0.00025452,2]
[381498437,1756235445580,-332.0,0.00025479,7]
[381498438,1756235445589,-503.0,0.00025479,7]
[381498439,1756235445598,-496.0,0.0002548,2]
[381498440,1756235445608,-1000.0,0.00025483,2]
[381498441,1756235445616,-500.0,0.00025505,2]
[381498442,1756235445626,-369.88,0.00025505,2]
[381498443,1756235445635,-150.0,0.00025546,2]
[381498444,1756235445644,-1000.0,0.0002555,2]
[381498445,1756235445654,-150.0,0.00025571,4]
[381498446,1756235445663,-21863.46546749,0.00025597,3]
[381498447,1756235445671,-844.63891918,0.00025597,3]
[381498448,1756235445680,-458.7662338,0.000256,3]
[381498449,1756235445690,-160.0,0.000256,3]
[381498450,1756235445699,-212.18043798,0.000256,3]
[381498451,1756235445708,-150.0,0.00025625,2]
[381498452,1756235445717,-499.0,0.00025641,7]
[381498453,1756235445726,-241.57,0.00025704,2]
[381498454,1756235445735,-500.0,0.00025726,2]
[381498455,1756235445744,-500.0,0.00025726,2]
[381498456,1756235445753,-150.0,0.00025743,4]
[381498457,1756235445763,-332.0,0.00025753,7]
[381498458,1756235445772,-503.0,0.00025753,7]
[381498459,1756235445780,-496.0,0.00025754,2]
[381498460,1756235445790,-509.0,0.00025767,2]
[381498461,1756235445799,-265.936,0.00025868,2]
[381498462,1756235445808,-3032.0740136,0.00025868,2]
[381498463,1756235445817,-675.0,0.0002588,2]
[381498464,1756235445826,-332.0,0.0002589,7]
[381498465,1756235445835,-503.0,0.0002589,7]
[381498466,1756235445844,-150.0,0.00025916,4]
[381498467,1756235445854,-1000.0,0.00025999,2]
[381498468,1756235445864,-500.0,0.00026,2]
[381498469,1756235445873,-500.0,0.00026,2]
[381498470,1756235445883,-205000.0,0.00026,15]
[381498471,1756235445893,-1057.85,0.00026,2]
[381498472,1756235445904,-1210.25,0.00026,7]
[381498473,1756235445914,-600.0,0.00026,2]
[381498474,1756235445924,-503.0,0.00026027,7]
[381498475,1756235445934,-496.0,0.00026028,2]
[381498476,1756235445943,-500.0,0.00026062,2]
[381498477,1756235445953,-1000.0,0.00026085,2]
[381498478,1756235445962,-150.0,0.00026089,4]
[381498479,1756235445971,-322.6107,0.00026167,2]
[381498480,1756235445981,-300.0,0.00026167,2]
[381498481,1756235445991,-151.0,0.00026167,2]
[381498482,1756235446000,-200.55954001,0.00026167,2]
[381498483,1756235446010,-1000.0,0.00026167,2]
[381498484,1756235446020,-670.58624095,0.00026167,2]
[381498485,1756235446031,-257.91778498,0.00026167,2]
[381498486,1756235446046,-1000.0,0.00026167,2]
[381498487,1756235446056,-2434.74389024,0.00026167,2]
[381498488,1756235446065,-300.0,0.00026167,2]
[381498489,1756235446075,-1000.0,0.00026167,2]
[381498490,1756235446086,-268.25,0.00026213,2]
[381498491,1756235446096,-2524.82941417,0.00026222,2]
[381498493,1756235446107,-368.0,0.00026242,2]
[381498494,1756235446118,-1000.0,0.00026259,2]
[381498495,1756235446128,-150.0,0.00026262,4]
[381498496,1756235446139,-30975.2904943,0.00026267,2]
[381498497,1756235446150,-500.0,0.00026274,2]
[381498498,1756235446161,-500.0,0.00026274,2]
[381498499,1756235446171,-2618.2481025,0.00026277,2]
[381498500,1756235446180,-368.0,0.00026287,2]
[381498501,1756235446191,-21863.46546749,0.00026293,5]
[381498502,1756235446201,-496.0,0.00026302,2]
[381498503,1756235446211,-2715.12328229,0.00026332,2]
[381498504,1756235446222,-1182.23,0.00026335,7]
[381498505,1756235446235,-2815.58284374,0.00026387,2]
[381498506,1756235446245,-369.88,0.00026395,2]
[381498507,1756235446258,-150.0,0.00026434,4]
[381498508,1756235446269,-2919.75940895,0.00026442,2]
[381498509,1756235446279,-1400.0,0.00026473,2]
[381498510,1756235446290,-1400.0,0.00026473,2]
[381498511,1756235446300,-3027.79050709,0.00026497,2]
[381498512,1756235446310,-368.0,0.00026511,2]
[381498513,1756235446320,-419.31572819,0.00026548,2]
[381498514,1756235446330,-500.0,0.00026548,2]
[381498515,1756235446340,-600.0,0.00026548,2]
[381498516,1756235446350,-3139.81875585,0.00026552,2]
[381498517,1756235446359,-1000.0,0.00026556,2]
[381498518,1756235446369,-874.96805066,0.00026565,2]
[381498519,1756235446378,-496.0,0.00026576,2]
[381498520,1756235446388,-3255.99204981,0.00026607,2]
[381498521,1756235446398,-150.0,0.00026607,4]
[381498522,1756235446407,-368.0,0.00026615,2]
[381498523,1756235446417,-3376.46375566,0.00026662,2]
[381498524,1756235446427,-245.99,0.00026676,2]
[381498525,1756235446438,-3501.39291462,0.00026717,2]
[381498526,1756235446448,-163.38670319,0.0002674,30]
[381498527,1756235446458,-3630.94445246,0.00026772,2]
[381498528,1756235446468,-150.0,0.0002678,4]
[381498529,1756235446477,-30975.2904943,0.00026798,2]
[381498530,1756235446487,-255.66,0.00026808,2]
[381498531,1756235446496,-469.3,0.00026817,2]
[381498532,1756235446506,-469.3,0.00026817,2]
[381498533,1756235446515,-469.3,0.00026817,2]
[381498534,1756235446525,-469.3,0.00026817,2]
[381498535,1756235446534,-469.3,0.00026817,2]
[381498536,1756235446544,-469.3,0.00026817,2]
[381498537,1756235446553,-150.0,0.00026822,2]
[381498538,1756235446563,-3765.2893972,0.00026827,2]
[381498539,1756235446572,-368.0,0.00026845,7]
[381498540,1756235446583,-809.245,0.00026849,6]
[381498541,1756235446593,-496.0,0.0002685,2]
[381498542,1756235446602,-637.0,0.00026858,2]
[381498544,1756235446612,-500.0,0.0002687,2]
[381498545,1756235446621,-2863.809,0.00026926,15]
[381498546,1756235446631,-180.4,0.00026926,15]
[381498547,1756235446641,-503.0,0.00026926,7]
[381498548,1756235446651,-150.0,0.00026953,4]
[381498549,1756235446661,-500.0,0.0002697,2]
[381498550,1756235446670,-4701.4227237,0.0002698,2]
[381498551,1756235447756,-168.0,0.00024543,2]
[381498552,1756235447769,-940.9078,0.0002698,2]
[381498553,1756235449520,-153.0,0.00019014,2]
[381498554,1756235449530,-153.0,0.00019014,2]
[381498555,1756235449540,-153.0,0.00019014,2]
[381498556,1756235449549,-153.0,0.00019014,2]
[381498557,1756235449559,-153.0,0.00019014,2]
[381498558,1756235449568,-153.0,0.00019014,2]
[381498559,1756235449578,-277.15608438,0.00024957,2]
[381498560,1756235449587,-4157.14230386,0.0002698,2]
[381498561,1756235449758,-2805.94289943,0.0002698,2]
[381498562,1756235449777,-3380.09742884,0.0002698,2]
[381498563,1756235449788,-2552.31,0.0002698,2]
[381498564,1756235449873,-153.0,0.00019014,2]
[381498565,1756235449882,-74388.04832697,0.0002698,2]
[381498566,1756235449892,-45210.0448471,0.0002698,2]
[381498567,1756235449901,-30975.2904943,0.0002699,2]
[381498568,1756235449911,-22605.0224235,0.0002699,2]
[381498569,1756235449921,-21863.46546749,0.0002699,6]
[381498570,1756235449930,-165612.33943645,0.0002699,2]
[381498571,1756235449976,-747.48136469,0.0002699,2]
[381498602,1756236089573,237.0,0.00013699,2]
[381498644,1756236218061,-2708.69497038,0.00018826,2]
[381498645,1756236218083,-153.0,0.00018926,2]
[381498646,1756236218104,-153.0,0.00018926,2]
[381498647,1756236218128,-153.0,0.00018926,2]
[381498648,1756236218149,-153.0,0.00018926,2]
[381498649,1756236218171,-153.0,0.00018926,2]
[381498650,1756236218192,-153.0,0.00018934,2]
[381498651,1756236218214,-153.0,0.00018934,2]
[381498652,1756236218236,-153.0,0.00018934,2]
[381498653,1756236218262,-153.0,0.00018934,2]
[381498654,1756236218283,-153.0,0.00018942,2]
[381498655,1756236218305,-153.0,0.00018942,2]
[381498656,1756236218328,-1000.0,0.00018942,3]
[381498657,1756236218350,-153.0,0.00018942,2]
[381498658,1756236218370,-35.30502962,0.00018942,2]
[381498740,1756236491742,-159.6,0.00016286,2]
[381498741,1756236491765,-204.0,0.00017914,2]
[381498742,1756236491787,-1000.0,0.00017914,3]
[381498743,1756236491812,-500.0,0.00017973,2]
[381498744,1756236491834,-500.0,0.00017973,2]
[381498745,1756236491861,-524.9866831,0.00017973,2]
[381498746,1756236491884,-1200.0,0.00017999,2]
[381498747,1756236491907,-405.0,0.00017999,2]
[381498748,1756236491929,-166.55774375,0.00017999,2]
[381498749,1756236491952,-500.0,0.00017999,2]
[381498750,1756236491975,-451.01416056,0.00017999,2]
[381498751,1756236491999,-152.52380394,0.00017999,2]
[381498752,1756236492023,-4812.33683735,0.00018,2]
[381498753,1756236492045,-647.47225701,0.00018,2]
[381498754,1756236492069,-88776.50851429,0.00018,2]
[381498756,1756236503267,490.0,0.0002699,120]
[381498824,1756236631830,-1200.0,0.00017899,2]
[381498825,1756236631841,-77.10219932,0.00017899,2]
[381498826,1756236631852,-222.89780068,0.00017899,2]
[381498827,1756236631861,-188.85830759,0.000179,2]
[381498828,1756236631898,-567.9,0.000179,2]
[381498830,1756236631917,-28248.18160372,0.000179,2]
[381498831,1756236631926,-59276.23869825,0.000179,2]
[381498832,1756236631935,-152.44442618,0.000179,2]
[381498833,1756236631945,-500.0,0.00017973,2]
[381498834,1756236631954,-500.0,0.00017973,2]
[381498835,1756236631963,-500.0,0.00017973,2]
[381498837,1756236631973,-500.0,0.00017973,2]
[381498839,1756236631982,-500.0,0.00017973,2]
[381498841,1756236631991,-500.0,0.00017973,2]
[381498843,1756236632000,-500.0,0.00017973,2]
[381498845,1756236632009,-505.31612321,0.00017973,2]
[381498847,1756236632018,-500.0,0.00017973,2]
[381498849,1756236632027,-500.0,0.00017973,2]
[381498851,1756236632036,-500.0,0.00017973,2]
[381498853,1756236632046,-323.7361285,0.00018,2]
[381498855,1756236632055,-2406.16841867,0.00018,2]
[381498857,1756236632064,-2594928.53678221,0.00018,2]
[381498859,1756236632075,-317.91518327,0.00018,2]
[381498861,1756236632086,-934.46000228,0.00018,2]
[381498923,1756236637433,-199.81769684,0.000179,2]
[381498924,1756236637444,-23756.84230316,0.00018,2]
[381498925,1756236637573,-2171.13502962,0.00018,2]
[381498926,1756236637585,-7587.01406532,0.00018,2]
[381498927,1756236637596,-294.75802627,0.00018,2]
[381498928,1756236637619,-8880.91630274,0.00018,2]
[381499092,1756236639449,-979.3688278,0.00018,2]
[381499095,1756236639468,-605.975,0.00018,2]
[381499101,1756236639502,-5124.8578486,0.00018,2]
[381499116,1756236639644,-2720.97668816,0.00018,2]
[381499119,1756236639657,-63808.50934899,0.00018,2]
[381499121,1756236639671,-4766.15403991,0.00018,2]
[381499334,1756236641753,-268.4850003,0.00018,2]
[381499336,1756236641765,-2144671.94894944,0.00018,2]
[381499338,1756236641774,-1840.54000307,0.00018,2]
[381499340,1756236641783,-1186340.27589684,0.00018,2]
[381499405,1756236642623,-4652.02786434,0.00018,2]
[381499417,1756236642733,-1023.90858825,0.00018,2]
[381499430,1756236642843,-2359.0988197,0.00018,2]
[381499437,1756236642895,-1293.68397777,0.00018,2]
[381499444,1756236642954,-37740.97780838,0.00018,2]
[381499723,1756236645551,-378.25851566,0.00018,2]
[381499733,1756236645797,-32773.99905912,0.00018,2]
[381499737,1756236645820,-6160.08618388,0.00018,2]
[381499739,1756236645831,-910.07126,0.00018,2]
[381499741,1756236645842,-776.26541492,0.00018,2]
[381500267,1756237019397,242.32,0.00013699,2]
[381500275,1756237171098,498.56789,0.00013699,2]
[381500277,1756237285902,-498.56789,0.00015699,2]
[381500278,1756237285925,-150.0,0.00016345,2]
[381500279,1756237285946,-5351.43211,0.00016893,2]
[381500280,1756237304619,-316.38,0.00016823,2]
[381500281,1756237304892,-316.38,0.00016858,2]
[381500282,1756237304904,-32785.94659783,0.00016858,2]
[381500305,1756237709428,159.6,0.00013238,2]
[381500308,1756237775295,-316.38,0.00016264,2]
[381500318,1756237831819,-961.81621107,0.00016264,2]
[381500319,1756237831856,-1643.82885487,0.00016264,2]
[381500320,1756237831868,-1635.88493406,0.00016264,2]
[381500321,1756237831877,-273.82028217,0.00016313,3]
[381500322,1756237831911,-616.93065259,0.00016313,3]
[381500323,1756237831923,-109.24906524,0.00016313,3]
[381500324,1756237831933,-543.82,0.00016361,2]
[381500325,1756237831943,-34.3781307,0.00016466,2]
[381500326,1756237831982,-676.36903799,0.00016466,2]
[381500327,1756237832094,-602.45166163,0.00016466,2]
[381500328,1756237832105,-1196.70969132,0.00016466,2]
[381500340,1756237837782,-261.52156641,0.00016466,2]
[381500341,1756237837922,-778.46143605,0.00016466,2]
[381500342,1756237837934,-528.5078851,0.00016466,2]
[381500522,1756237839702,-17200.4905908,0.00016466,2]
[381500523,1756237839712,-1945.23168165,0.00016518,2]
[381500524,1756237839761,-424.10729223,0.00016518,2]
[381500525,1756237839772,-738.512065,0.00016518,2]
[381500526,1756237839813,-12729.54896112,0.00016518,2]
[381500527,1756237839822,-200.0,0.00016533,2]
[381500528,1756237839831,-200.0,0.0001656,2]
[381500529,1756237839841,-610.07,0.00016587,2]
[381500530,1756237839852,-610.0,0.00016594,2]
[381500531,1756237839862,-1000.0,0.00016604,2]
[381500532,1756237839871,-1083.76377523,0.00016704,2]
[381500533,1756237839882,-875.0,0.00016704,2]
[381500534,1756237839892,-300.0,0.00016704,2]
[381500535,1756237839901,-35190.93,0.00016705,2]
[381500536,1756237839910,-666.0,0.00016731,3]
[381500537,1756237839921,-56688.48340217,0.00016858,2]
[381500539,1756237839931,-8975.66789,0.00016893,2]
[381500541,1756237839940,-2953.25953495,0.00016965,2]
[381500542,1756237839950,-3649.01,0.00016991,2]
[381500544,1756237839960,-1000.0,0.00017026,2]
[381500546,1756237839970,-168.93,0.00017066,2]
[381500548,1756237839979,-6892.4,0.00017116,2]
[381500550,1756237839989,-1828.51,0.00017155,2]
[381500552,1756237839999,-150.0,0.0001737,2]
[381500554,1756237840008,-160.0,0.00017378,7]
[381500556,1756237840018,-15596.93078966,0.00017427,2]
[381500560,1756237840047,-492.98219079,0.00017427,2]
[381500563,1756237840071,-3875.62701955,0.00017427,2]
[381500565,1756237840080,-503.84071091,0.00017428,2]
[381500567,1756237840089,-616.48,0.00017518,2]
[381500569,1756237840099,-216.0,0.00017565,2]
[381500571,1756237840108,-150.68972433,0.00017592,2]
[381500573,1756237840117,-150.01,0.00017598,2]
[381500575,1756237840126,-168.0,0.00017617,2]
[381500577,1756237840135,-1852.42,0.00017618,2]
[381500579,1756237840144,-175.91447697,0.00017656,2]
[381500581,1756237840153,-5343.91344662,0.00017656,2]
[381500583,1756237840163,-151.0,0.00017692,2]
[381500585,1756237840173,-151.0,0.00017692,2]
[381500587,1756237840183,-151.0,0.00017692,2]
[381500589,1756237840192,-151.0,0.00017692,2]
[381500592,1756237840202,-151.0,0.00017692,2]
[381500595,1756237840212,-151.0,0.00017692,2]
[381500598,1756237840221,-151.0,0.00017692,2]
[381500600,1756237840231,-264.01710526,0.00017692,2]
[381500602,1756237840241,-393338.43,0.00017703,2]
[381500604,1756237840250,-2953.25953491,0.00017736,2]
[381500606,1756237840259,-150.68972433,0.00017761,2]
[381500608,1756237840269,-372.5565793,0.00017787,2]
[381500610,1756237840280,-1108.1046,0.00017863,2]
[381500612,1756237840289,-1000.0,0.0001789,3]
[381500614,1756237840299,-150.68972433,0.00017929,2]
[381500616,1756237840309,-1942.66793111,0.00017973,2]
[381500618,1756237840318,-1500.0,0.00017987,2]
[381500620,1756237840328,-3141.599009,0.00017992,2]
[381500622,1756237840337,-13649.2014741,0.00017999,2]
[381500624,1756237840349,-123480.12690754,0.00018,2]
[381500628,1756237840379,-1188180.81589991,0.00018,2]
[381500633,1756237840418,-1227.0,0.00018,2]
[381500635,1756237840429,-444.87535618,0.00018,2]
[381500804,1756237842866,-703197.78741999,0.00018,2]
[381500807,1756237842921,-2260.6623,0.00018,2]
[381500814,1756237842976,-267.15,0.00018,2]
[381500816,1756237842987,-546.95755058,0.00018,2]
[381500818,1756237842996,-1000.0,0.00018,2]
[381500820,1756237843007,-332.37859,0.00018,2]
[381500822,1756237843017,-150.68972433,0.00018098,2]
[381500824,1756237843027,-201.92246974,0.00018161,2]
[381500855,1756237846311,-141.97753026,0.00018161,2]
[381500856,1756237846320,-252.62,0.00018166,2]
[381500857,1756237846330,-150.0,0.00018187,2]
[381500858,1756237846340,-204.0,0.00018187,2]
[381500859,1756237846350,-399.70246974,0.00018187,2]
[381500860,1756237846362,-762.29753026,0.00018187,2]
[381500861,1756237846371,-151.0,0.0001824,2]
[381500862,1756237846381,-1500.0,0.00018242,2]
[381500863,1756237846390,-150.68972433,0.00018267,2]
[381500864,1756237846400,-5343.9134466,0.0001835,2]
[381500865,1756237846410,-616.48,0.00018394,2]
[381500866,1756237846419,-95.17915063,0.00018436,2]
[381500867,1756237846465,-55.5105737,0.00018436,2]
[381500868,1756237846475,-2953.25953491,0.00018506,2]
[381500869,1756237846485,-169.36102477,0.0001856,2]
[381500870,1756237846495,-630.42153095,0.0001856,2]
[381500871,1756237846505,-150.68972433,0.00018604,2]
[381500872,1756237846514,-880.68629776,0.00018675,2]
[381500873,1756237846524,-527.74833519,0.0001873,2]
[381500874,1756237846533,-150.68972433,0.00018773,2]
[381500875,1756237846543,-151.0,0.00018788,2]
[381500876,1756237846552,-355941.33396015,0.0001886,2]
[381500877,1756237846564,-4275.43295236,0.0001886,2]
[381500878,1756237846575,-5259.287,0.0001886,2]
[381500879,1756237846619,-14114.82767983,0.0001886,2]
[381500880,1756237846631,-6084.51571503,0.0001886,2]
[381500881,1756237846642,-772.98081719,0.0001886,2]
[381500882,1756237846654,-619.3999998,0.0001886,2]
[381500883,1756237846682,-3784.39303102,0.0001886,2]
[381500891,1756237980317,250.65,0.00013699,2]
[381500922,1756238663254,230.95,0.00026359,120]
[381500950,1756238735866,159.6,0.00014059,2]
[381501029,1756238883195,500.0,0.00013699,2]
[381501031,1756238935752,-150.0,0.00014559,3]
[381501032,1756238935810,-16.38,0.00015824,2]
[381501038,1756238951786,238.11,0.00013699,2]
[381501085,1756239032002,-396.41273275,0.00015724,2]
[381501087,1756239032012,-233.62,0.00015824,2]
[381501089,1756239032021,-1162.0,0.00015824,2]
[381501092,1756239032031,-150.0,0.00015874,2]
[381501095,1756239032040,-300.0,0.00016014,2]
[381501097,1756239032053,-1200.0,0.00016014,2]
[381501099,1756239032063,-150.0,0.00016015,2]
[381501101,1756239032074,-150.0,0.00016015,2]
[381501103,1756239032083,-250.0,0.00016015,2]
[381501104,1756239032093,-1162.0,0.00016015,2]
[381501106,1756239032103,-204.0,0.00016015,2]
[381501107,1756239032112,-402.172414,0.00017338,2]
[381501108,1756239032121,-1362.16,0.00017426,2]
[381501109,1756239032131,-420.0,0.00017508,2]
[381501110,1756239032141,-3820.82,0.00017548,2]
[381501111,1756239032150,-4442.01,0.00017548,2]
[381501112,1756239032159,-230.95,0.00017573,2]
[381501113,1756239032168,-159.6,0.00017573,2]
[381501114,1756239032178,-1680.0,0.00017596,2]
[381501115,1756239032188,-250.0,0.00017639,2]
[381501116,1756239032197,-500.0,0.0001765,2]
[381501117,1756239032206,-666.0,0.00017712,3]
[381501118,1756239032216,-500.0,0.00017815,2]
[381501119,1756239032225,-210.35,0.0001792,2]
[381501120,1756239032235,-1000.0,0.0001796,2]
[381501121,1756239032244,-150.0,0.00017999,2]
[381501122,1756239032253,-1566.8,0.00018,2]
[381501123,1756239032263,-1328.18,0.00018002,2]
[381501124,1756239032272,-500.0,0.0001811,2]
[381501125,1756239032281,-156.4110047,0.00018139,2]
[381501126,1756239032292,-1579.080621,0.0001814,2]
[381501127,1756239032302,-931.2755594,0.0001814,2]
[381501128,1756239032312,-500.0,0.00018165,2]
[381501129,1756239032321,-161.39,0.00018182,2]
[381501130,1756239032330,-2751.0,0.00018214,2]
[381501131,1756239032339,-500.0,0.0001822,2]
[381501132,1756239032349,-1566.8,0.00018273,2]
[381501133,1756239032358,-500.0,0.00018275,2]
[381501134,1756239032367,-492.84,0.00018281,2]
[381501135,1756239032377,-1362.16,0.00018297,2]
[381501136,1756239032386,-500.0,0.0001833,2]
[381501137,1756239032396,-151.0,0.00018353,2]
[381501138,1756239032405,-751.43,0.00018374,2]
[381501139,1756239032414,-500.0,0.00018385,2]
[381501140,1756239032423,-500.0,0.0001844,2]
[381501141,1756239032433,-500.0,0.00018495,2]
[381501142,1756239032442,-1566.8,0.00018547,2]
[381501143,1756239032452,-500.0,0.0001855,2]
[381501144,1756239032462,-500.0,0.00018605,2]
[381501145,1756239032472,-557.67863602,0.0001866,2]
[381501146,1756239032481,-649.80033,0.0001867,2]
[381501147,1756239032492,-1500.0,0.00018702,2]
[381501148,1756239032501,-1852.42,0.0001875,2]
[381501150,1756239032511,-160.0,0.0001875,7]
[381501152,1756239032522,-316.38,0.0001875,2]
[381501153,1756239032531,-316.38,0.0001875,2]
[381501155,1756239032541,-1566.8,0.00018821,2]
[381501156,1756239032550,-500.0,0.00018841,2]
[381501157,1756239032560,-536.62200023,0.0001885,2]
[381501158,1756239032569,-53986.2994326,0.0001886,2]
[381501159,1756239032582,-4484.9779279,0.0001886,2]
[381501160,1756239032593,-10348.62669569,0.0001886,2]
[381501161,1756239032621,-4494.07634299,0.0001886,2]
[381501162,1756239032845,-1592.63010587,0.0001886,2]
[381501163,1756239032868,-7523.04869115,0.0001886,2]
[381501164,1756239032879,-1198.1860162,0.0001886,2]
[381501165,1756239032894,-356.796004,0.0001886,2]
[381501166,1756239032905,-1216.31687708,0.0001886,2]
[381501167,1756239032915,-296.65349771,0.0001886,2]
[381501168,1756239032924,-716.88676729,0.0001886,2]
[381501169,1756239032933,-166.67,0.00018867,2]
[381501170,1756239032943,-2873.1008797,0.000189,3]
[381501171,1756239032952,-7389.35154795,0.000189,2]
[381501172,1756239032961,-500.0,0.00018999,2]
[381501173,1756239032970,-480.35577184,0.00018999,2]
[381501174,1756239032979,-500.0,0.00018999,2]
[381501175,1756239032988,-95227.02192548,0.00019,2]
[381501176,1756239033000,-2866.48686934,0.00019,2]
[381501177,1756239033010,-5065.97553237,0.00019,2]
[381501178,1756239033020,-193.35985019,0.00019,2]
[381501179,1756239033030,-1566.8,0.00019095,2]
[381501180,1756239033040,-587.0,0.00019142,2]
[381501181,1756239033052,-1362.16,0.00019168,2]
[381501182,1756239033061,-151.0,0.00019178,2]
[381501183,1756239033072,-4485.09,0.00019178,2]
[381501184,1756239033083,-150.0,0.00019178,2]
[381501185,1756239033092,-500.0,0.00019233,2]
[381501186,1756239033101,-2351.0,0.00019335,2]
[381501187,1756239033111,-1566.8,0.00019369,2]
[381501188,1756239033122,-161.39,0.00019481,2]
[381501189,1756239033131,-7389.35154791,0.00019544,2]
[381501190,1756239033141,-1566.8,0.00019643,2]
[381501191,1756239033150,-649.80033,0.0001967,2]
[381501192,1756239033160,-156.587,0.00019726,2]
[381501193,1756239033170,-167.19,0.00019746,2]
[381501194,1756239033180,-230.95,0.00019769,2]
[381501195,1756239033189,-304.02,0.00019863,2]
[381501196,1756239033199,-1778.36316346,0.000199,3]
[381501197,1756239033208,-1566.8,0.00019917,2]
[381501198,1756239033218,-1018.17579151,0.0002,2]
[381501199,1756239033228,-1362.16,0.00020039,2]
[381501200,1756239033238,-238.11,0.00020187,2]
[381501201,1756239033247,-1566.8,0.00020191,2]
[381501202,1756239033257,-1000.0,0.00020205,2]
[381501203,1756239033267,-162.380719,0.00020274,2]
[381501204,1756239033276,-155.0,0.00020286,2]
[381501205,1756239033285,-931.2755594,0.00020295,2]
[381501206,1756239033295,-430.0,0.00020382,2]
[381501207,1756239033304,-430.0,0.00020382,2]
[381501208,1756239033314,-422.0,0.00020382,2]
[381501209,1756239033323,-422.0,0.00020382,2]
[381501210,1756239033333,-422.0,0.00020382,2]
[381501211,1756239033342,-422.0,0.00020382,2]
[381501212,1756239033351,-422.0,0.00020382,2]
[381501213,1756239033361,-422.0,0.00020382,2]
[381501214,1756239033370,-422.0,0.00020382,2]
[381501215,1756239033380,-422.0,0.00020382,2]
[381501216,1756239033390,-422.0,0.00020382,2]
[381501217,1756239033400,-422.0,0.00020382,2]
[381501218,1756239033409,-422.0,0.00020382,2]
[381501219,1756239033419,-422.0,0.00020382,2]
[381501220,1756239033430,-422.0,0.00020382,2]
[381501221,1756239033440,-422.0,0.00020382,2]
[381501222,1756239033450,-237.0,0.00020382,2]
[381501223,1756239033460,-237.0,0.00020382,2]
[381501224,1756239033470,-237.0,0.00020382,2]
[381501225,1756239033479,-237.0,0.00020382,2]
[381501226,1756239033489,-237.0,0.00020382,2]
[381501227,1756239033499,-237.0,0.00020382,2]
[381501228,1756239033508,-237.0,0.00020382,2]
[381501229,1756239033517,-237.0,0.00020382,2]
[381501230,1756239033526,-237.0,0.00020382,2]
[381501231,1756239033536,-237.0,0.00020382,2]
[381501232,1756239033545,-237.0,0.00020382,2]
[381501233,1756239033554,-237.0,0.00020382,2]
[381501234,1756239033564,-237.0,0.00020382,2]
[381501235,1756239033574,-237.0,0.00020382,2]
[381501236,1756239033586,-422.0,0.00020382,2]
[381501237,1756239033595,-422.0,0.00020382,2]
[381501238,1756239033605,-422.0,0.00020382,2]
[381501239,1756239033615,-422.0,0.00020382,2]
[381501240,1756239033624,-422.0,0.00020382,2]